Workbook

Sheet бюджет
A1: Сводные данные по бюджету времени (в неделях)
A2: 15.02.19 Сварочное производство
A3: Курсы | B3: Обучение по дисциплинам и междисциплинарным курсам | C3: Учебная практика | D3: Производственная практика | F3: Промежуточная аттестация | G3: Государственная итоговая аттестация | H3: Каникулы | I3: Всего
D4: по профилю специальности | E4: преддипломная
E5: (для СПО)
A6: 1 | B6: 2 | C6: 3 | D6: 4 | E6: 5 | F6: 6 | G6: 7 | H6: 8 | I6: 9
A7: I курс | B7: 41 | C7: 0 | D7: 0 | E7: 0 | F7: 0 | G7: 0 | H7: 11 | I7: =H7+G7+F7+E7+D7+C7+B7 -> 52
A8: II курс | B8: 34 | C8: 5 | D8: 2 | E8: 0 | F8: 0 | G8: 0 | H8: 11 | I8: =H8+G8+F8+E8+D8+C8+B8 -> 52
A9: III курс | B9: 27 | C9: 8 | D9: 3 | E9: 0 | F9: 3 | G9: 0 | H9: 11 | I9: =H9+G9+F9+E9+D9+C9+B9 -> 52
A10: IV курс | B10: 19 | C10: 7 | D10: 3 | E10: 4 | F10: 2 | G10: 6 | H10: 2 | I10: =H10+G10+F10+E10+D10+C10+B10 -> 43
A11: Всего | B11: =B10+B9+B8+B7 -> 121 | C11: 20 | D11: 8 | E11: 4 | F11: 5 | G11: 6 | H11: =H10+H9+H8+H7 -> 35 | I11: =H11+G11+F11+E11+D11+C11+B11 -> 199

Sheet титульный лист
A1: Утверждаю
A2: И.о.директора ГАПОУ РК
A3: «Северный колледж»
A4: ________________
B5: приказ № /од
A6: 2024 г.
A7: УЧЕБНЫЙ ПЛАН
A8: основной профессиональной образовательной программы СПО ППССЗ
A9: государственного автономного профессионального образовательного учреждения образования Республики Карелия
A10: «Северный колледж»
A11: по специальности 15.02.19 Сварочное производство
A14: Квалификация: техник
A16: форма обучения - очная
A17: нормативный срок обучения – 3 года 10 месяцев
A18: на базе основного общего образования с получением среднего общего образования
A19: профиль получаемого профессионального образования технический

Sheet Учебный план
A1: План учебного процесса основная профессиональная образовательная программа СПО ППССЗ по специальности 15.02.19 Сварочное производство
A2: Индекс | B2: Наименование циклов, дисциплин, профессиональных модулей, МДК, практик | C2: Формы промежуточной аттестации / семестр | D2: Объем образовательной программы, в академических часах | I2: Распределение объема работы обучающихся во взаимодействии с преподавателем (учебных занятий и практики в профессиональном цикле) (час. в семестр)
I6: I курс (2024/2025 уч. год) | K6: II курс (2025/2026 уч. год) | M6: III курс (2026/2027 уч. год) | O6: IV курс (2027/2028 уч. год)
I7: 1 семестр | J7: 2 семестр | K7: 3 семестр | L7: 4 семестр | M7: 5 семестр | N7: 6 семестр | O7: 7 семестр | P7: 8 семестр
D8: всего | E8: учебные занятия | F8: лаб. и практ. занятий | G8: самостоятельная работа | H8: курсовых работ | I8: сем. | J8: сем. | K8: сем. | L8: сем. | M8: сем. | N8: сем. | O8: сем. | P8: сем.
I9: 17 | J9: 23 | K9: 17 | L9: 23 | M9: 17 | N9: 23 | O9: 17 | P9: 23
I10: =I9*36 -> 612 | J10: 828 | K10: 612 | L10: 828 | M10: 612 | N10: 828 | O10: 612 | P10: 828
I11: нед | J11: нед | K11: нед | L11: нед | M11: нед | N11: нед | O11: нед | P11: нед
A12: 1 | B12: 2 | C12: 3 | D12: 5 | E12: 6 | F12: 7 | H12: 8 | I12: 9 | J12: 10 | K12: 11 | L12: 12 | M12: 13 | N12: 14 | O12: 15 | P12: 16
D13: =D14+D31+D38+D49+D73++D78+D79+D80 -> 5940 | E13: =SUM(I13:P13) -> 5760 | F13: =F14+F31+F49+F73+F80 -> 1494 | G13: =G14+G31+G38+G49+G73 -> 180 | H13: =H14+H31+H49+H73+H80 -> 94 | I13: =I14+I31+I38+I49+I73+I78+I79+I80 -> 612 | J13: =J14+J31+J38+J49+J73+J78+J79+J80 -> 828 | K13: 612 | L13: 828 | M13: 612 | N13: 828 | O13: 612 | P13: =P14+P31+P38+P49+P73+P78+P79+P80 -> 828
A14: О.00 | B14: Общеобразовательный цикл | D14: =SUM(D16:D29) -> 1476 | E14: =SUM(E16:E29) -> 1472 | F14: =SUM(F16:F29) -> 753 | G14: =SUM(G16:G29) -> 4 | H14: =SUM(H16:H29) -> 0 | I14: =SUM(I16:I29) -> 576 | J14: =SUM(J16:J29) -> 532 | K14: 262 | L14: 102 | M14: 0 | N14: 0 | O14: 0 | P14: =SUM(P16:P29) -> 0
A15: Общие
A16: ОУД.01 | B16: Русский язык | C16: Э/2 | D16: =E16+G16 -> 72 | E16: =SUM(I16:P16) -> 72 | F16: 30 | I16: 34 | J16: 38
A17: ОУД.02 | B17: Литература | C17: ДЗ/2 | D17: 108 | E17: =SUM(I17:P17) -> 108 | F17: 97 | I17: 54 | J17: 54
A18: ОУД.03 | B18: Иностранный язык | C18: ДЗ/2 | D18: 72 | E18: 72 | F18: 72 | I18: 36 | J18: 36
A19: ОУД.04 | B19: Математика | C19: Э/4 | D19: 284 | E19: 284 | F19: 92 | I19: 64 | J19: 62 | K19: 106 | L19: 52
A20: ОУД.05 | B20: Информатика | C20: Э/3 | D20: 164 | E20: 164 | F20: 125 | I20: 48 | J20: 58 | K20: 58
A21: ОУД.06 | B21: История | C21: Э/3 | D21: 136 | E21: 136 | F21: 40 | I21: 68 | J21: 68
A22: ОУД.07 | B22: Обществознание | C22: ДЗ/2 | D22: 72 | E22: 72 | F22: 24 | I22: 38 | J22: 34
A23: ОУД.08 | B23: География | C23: ДЗ/2 | D23: 52 | E23: 52 | F23: 20 | I23: 52
A24: ОУД.09 | B24: Физика | C24: Э/3 | D24: 220 | E24: 220 | F24: 80 | I24: 50 | J24: 50 | K24: 70 | L24: 50
A25: ОУД.10 | B25: Химия | C25: ДЗ/2 | D25: 72 | E25: 72 | F25: 24 | I25: 36 | J25: 36
A26: ОУД.11 | B26: Биология | C26: ДЗ/2 | D26: 52 | E26: 52 | F26: 11 | I26: 36 | J26: 16
A27: ОУД.12 | B27: Физическая культура | C27: ДЗ/2 | D27: 72 | E27: 72 | F27: 66 | I27: 28 | J27: 44
A28: ОУД.13 | B28: Основы безопасности и защиты Родины | C28: ДЗ/2 | D28: 68 | E28: 68 | F28: 44 | I28: 32 | J28: 36
A29: ОУД.14 | B29: Индивидуальный проект | C29: ДЗ/1 | D29: 32 | E29: 28 | F29: 28 | G29: 4 | K29: 28
A30: Обязательная часть учебных циклов ППССЗ
A31: СГЦ.00 | B31: Социально-гуманитарный цикл | D31: =SUM(D32:D37) -> 434 | E31: =SUM(E32:E37) -> 412 | F31: =SUM(F32:F37) -> 367 | G31: =SUM(G32:G37) -> 22 | H31: 0 | I31: =SUM(I32:I37) -> 0 | J31: 0 | K31: 40 | L31: 20 | M31: 140 | N31: 48 | O31: =SUM(O32:O37) -> 164 | P31: =SUM(P32:P37) -> 0
A32: СГЦ.01 | B32: История России | C32: ДЗ/5 | D32: =E32+G32 -> 72 | E32: =SUM(I32:P32) -> 68 | F32: 0 | G32: 4 | M32: 68
A33: СГЦ.02 | B33: Безопасность жизнедеятельности | C33: ДЗ/6 | D33: 68 | E33: 64 | F33: 28 | G33: 4 | M33: 42 | N33: 22
A34: СГЦ.03 | B34: Иностранный язык в профессиональной деятельности | C34: ДЗ/7 | D34: 68 | E34: =SUM(I34:P34) -> 60 | F34: 162 | G34: 8 | O34: 60
A35: СГЦ.04 | B35: Физическая культура | C35: ДЗ/7 | D35: 154 | E35: 152 | F35: 146 | G35: 2 | K35: 40 | L35: 20 | M35: 30 | N35: 26 | O35: 36
A36: СГЦ.05 | B36: Основы финансовой грамотности | C36: ДЗ/7 | D36: 36 | E36: 34 | F36: 14 | G36: 2 | O36: 34
A37: СГЦ.06 | B37: Основы бережливого производства | C37: ДЗ/8 | D37: 36 | E37: 34 | F37: 17 | G37: 2 | O37: 34
A38: ОП.00 | B38: Общепрофессиональный цикл | D38: =SUM(D39:D48) -> 766 | E38: =SUM(E39:E48) -> 686 | F38: 312 | G38: 80 | H38: =SUM(H39:H48) -> 0 | I38: =SUM(I39:I48) -> 36 | J38: 210 | K38: 174 | L38: 104 | M38: 40 | N38: 0 | O38: =SUM(O39:O48) -> 92 | P38: =SUM(P39:P48) -> 30
A39: ОП.01 | B39: Информационные технологии в профессиональной деятельности | C39: ДЗ/2 | D39: =E39+G39 -> 48 | E39: 40 | F39: 16 | G39: 8 | J39: 40
A40: ОП.02 | B40: Охрана труда | C40: ДЗ/5 | D40: =E40+G40 -> 42 | E40: 40 | F40: 20 | G40: 2 | M40: 40
A41: ОП.03 | B41: Экономика организации | C41: Э/4 | D41: 92 | E41: 82 | F41: 36 | G41: 10 | K41: 50 | L41: 32
A42: ОП.04 | B42: Менеджмент | C42: Э/7 | D42: 72 | E42: 62 | F42: 36 | G42: 10 | O42: 62
A43: ОП.05 | B43: Инженерная графика | C43: ДЗ/2 | D43: 108 | E43: 90 | F43: 59 | G43: 18 | I43: 36 | J43: 54
A44: ОП. 06 | B44: Техническая механика | C44: ДЗ/3 | D44: 108 | E44: 104 | F44: 62 | G44: 4 | J44: 52 | K44: 52
A45: ОП. 07 | B45: Материаловедение | C45: Э/4 | D45: 84 | E45: 76 | F45: 14 | G45: 8 | K45: 38 | L45: 38
A46: ОП. 08 | B46: Электротехника и электроника | C46: ДЗ/4 | D46: 72 | E46: 68 | F46: 39 | G46: 4 | K46: 34 | L46: 34
A47: ОП. 09 | B47: Метрология, стандартизация и сертификация | C47: ДЗ/2 | D47: 68 | E47: 64 | F47: 30 | G47: 4 | J47: 64
A48: ОП. 10 | B48: Технологические процессы в машиностроении | C48: ДЗ/8 | D48: 72 | E48: 60 | G48: 12 | O48: 30 | P48: 30
A49: ПМ.00 | B49: Профессиональный цикл | D49: =D50+D55+D60+D64+D68 -> 2656 | E49: =E50+E55+E60+E64+E68 -> 2586 | F49: 310 | G49: 70 | H49: 30 | I49: =I50+I55+I60+I64+I68 -> 0 | J49: 50 | K49: 118 | L49: 566 | M49: =M50+M55+M60+M64+M68 -> 414 | N49: 744 | O49: 274 | P49: =P50+P55+P60+P64+P68 -> 420
A50: ПМ.01 | B50: Подготовка и осуществление технологических процессов изготовления сварных конструкций | C50: Э(к)/5 | D50: =SUM(D51:D54) -> 744 | E50: =SUM(E51:E54) -> 734 | F50: =SUM(F51:F54) -> 80 | G50: 10 | H50: 0 | I50: 0 | J50: 50 | K50: 118 | L50: 566 | M50: 0 | N50: 0 | O50: 0 | P50: 0
A51: МДК.01.01 | B51: Технология сварочных работ | C51: Э/4 | D51: =E51+G51 -> 240 | E51: =SUM(I51:P51) -> 230 | F51: 80 | G51: 10 | J51: 50 | K51: 118 | L51: 62
A52: МДК.01.02 | B52: Основное оборудование для производства сварных конструкций | D52: 72 | E52: 72 | L52: 72
A53: УП.01 | B53: Учебная практика | C53: ДЗ/4 | D53: 144 | E53: 144 | L53: 144
A54: ПП.01 | B54: Производственная практика | D54: 288 | E54: 288 | L54: 288
A55: ПМ.02 | B55: Разработка технологических процессов и проектирование изделий | C55: Э(к)/6 | D55: =SUM(D56:D59) -> 796 | E55: =SUM(E56:E59) -> 774 | F55: =SUM(F56:F59) -> 120 | G55: 22 | H55: 30 | I55: 0 | J55: 0 | K55: 0 | L55: 0 | M55: =SUM(M56:M59) -> 414 | N55: 360 | O55: 0 | P55: 0
A56: МДК.02.01 | B56: Основы расчета и проектирования сварных конструкций | C56: Э/5 | D56: 300 | E56: 288 | F56: 120 | G56: 12 | H56: 30 | M56: 288
A57: МДК.02.02 | B57: Основы проектирования технологических процессов | D57: 100 | E57: 90 | G57: 10 | M57: 90
A58: УП.02 | B58: Учебная практика | C58: ДЗ/6 | D58: 108 | E58: 108 | M58: 36 | N58: 72
A59: ПП.02 | B59: Производственная практика | D59: 288 | E59: 288 | N59: 288
A60: ПМ.03 | B60: Контроль качества сварочных работ | C60: Э(к)/6 | D60: =D61+D62+D63 -> 418 | E60: =SUM(E61:E63) -> 418 | F60: =SUM(F61:F63) -> 50 | G60: 0 | H60: 0 | I60: =SUM(I61:I63) -> 0 | J60: 0 | K60: 0 | L60: 0 | M60: 0 | N60: 0 | O60: =SUM(O61:O63) -> 274 | P60: 144
A61: МДК.03.01 | B61: Формы и методы контроля качества металлов и сварных конструкций | C61: Э/7 | D61: 130 | E61: 130 | F61: 50 | O61: 130
A62: УП.03 | B62: Учебная практика | C62: ДЗ/8 | D62: 144 | E62: =SUM(I62:P62) -> 144 | O62: 144
A63: ПП.03 | B63: Производственная практика | D63: 144 | E63: 144 | P63: 144
A64: ПМ.04 | B64: Организация и планирование работ на сборочно-сварочном участке | C64: Э(к)/8 | D64: =SUM( D65:D67) -> 302 | E64: =SUM(E65:E67) -> 276 | F64: =SUM(F65:F67) -> 60 | G64: 26 | H64: =SUM(H65:H67) -> 0 | I64: 0 | J64: 0 | K64: 0 | L64: 0 | M64: 0 | N64: 0 | O64: 0 | P64: 276
A65: МДК.04.01 | B65: Основы организации и планирования производственных работ на сварочном участке | C65: Э/8 | D65: =E65+G65 -> 158 | E65: =SUM(I65:P65) -> 132 | F65: 60 | G65: 26 | P65: 132
A66: УП.04 | B66: Учебная практика | C66: ДЗ/8 | D66: 72 | E66: 72 | P66: 72
A67: ПП.04 | B67: Производственная практика | D67: 72 | E67: 72 | P67: 72
A68: ПМ.05 | B68: Выполнение работ по одной или нескольким профессиям рабочих, должностям служащих | D68: =D69+D70+D71+D72 -> 396 | E68: =SUM(E69:E72) -> 384 | F68: =SUM(F69:F72) -> 0 | G68: =SUM(G69:G72) -> 12 | H68: =SUM(H69:H72) -> 0 | I68: 0 | J68: 0 | K68: 0 | L68: 0 | M68: 0 | N68: =SUM(N69:N72) -> 384 | O68: 0 | P68: 0
A69: МДК.05.01 | B69: Выполнение работ по професии сварщик | C69: Э/6 | D69: =E69+G69 -> 108 | E69: 96 | G69: 12 | N69: 96
A70: МДК.05.02 | B70: Выполнение работ по професии резчик | D70: 72 | E70: 72 | N70: 72
A71: УП.05 | B71: Учебная практика | C71: ДЗ/6 | D71: 144 | E71: 144 | N71: 144
A72: ПП.05 | B72: Производственная практика | D72: 72 | E72: 72 | N72: 72
B73: Вариативная часть | D73: =SUM(D74:D76) -> 68 | E73: 64 | F73: =SUM(J73:Q73) -> 64 | G73: =SUM(G74:G75) -> 4 | H73: =SUM(L73:S73) -> 64 | I73: =SUM(I74:I76) -> 0 | J73: 0 | K73: 0 | L73: 0 | M73: 0 | N73: 0 | O73: 64 | P73: 0
A74: ОП. 11 | B74: Основы предпринимательской деятельности | C74: ДЗ/7 | D74: =E74+G74 -> 32 | E74: 32 | F74: 16 | O74: 32
A75: ОП. 12 | B75: Бизнес проектирование | C75: ДЗ/7 | D75: =E75+G75 -> 36 | E75: 32 | F75: 25 | G75: 4 | O75: 32
E76: 0
A77: Всего | D77: =D13 -> 5940 | E77: 5760 | F77: 1494 | H77: 94 | I77: 612 | J77: 828 | K77: 612 | L77: 828 | M77: 612 | N77: 828 | O77: 612 | P77: 828
A78: ПДП | B78: Преддипломная практика (недель) | D78: =E78+G78 -> 144 | E78: 144 | P78: 144
A79: ПА | B79: Промежуточная аттестация | D79: 180 | E79: =SUM(I79:P79) -> 180 | J79: 36 | K79: 18 | L79: 36 | M79: 18 | N79: 36 | O79: 18 | P79: 18
A80: ГИА | B80: Государственная итоговая аттестация | D80: 216 | E80: =E81+E82+E83 -> 216 | P80: 216
B81: Подготовка защиты дипломной работы | E81: =SUM(F81:P81) -> 108 | P81: 108
B82: Защита дипломной работы | E82: =SUM(F82:P82) -> 36 | P82: 36
B83: Проведение демонстрационного экзамена | E83: 72 | P83: 72
A84: Государственная итоговая аттестация проводится в форме демонстрационного экзамена и защиты дипломного проекта (работы) | E84: Всего | F84: дисциплин и МДК
F86: учебной практики | I86: =I71+I66+I62+I58+I53 -> 0 | J86: =J71+J66+J62+J58+J53 -> 0 | K86: 0 | L86: 144 | M86: 36 | N86: 216 | O86: 144 | P86: 72
F87: производст. практики | I87: =I72+I67+I63+I59+I54 -> 0 | J87: =J72+J67+J63+J59+J54 -> 0 | K87: 0 | L87: 288 | M87: 0 | N87: 360 | O87: 0 | P87: 216
F88: экзаменов | I88: 0 | J88: 4 | K88: 2 | L88: 3 | M88: 2 | N88: 2 | O88: 2 | P88: 2
F89: дифф. зачетов | I89: 1 | J89: 9 | K89: 2 | L89: 3 | M89: 3 | N89: 6 | O89: 5 | P89: 4
F90: зачетов | I90: 0 | J90: 0 | K90: 0 | L90: 0 | M90: 0 | N90: 0 | O90: 0 | P90: 0
B92: Согласовано:
B94: Заместитель директора | E94: М.Н. Романова
B95: Заместитель директора по УПР | E95: В.О. Пикалёв
B96: Методист | E96: С.С. Кульгова
